bitfinex-derivatives/quotes_ETHF0:USTF0_20260117
["timestamp","ask_amount","ask_price","bid_price","bid_amount"]
[1768693136005,0.98097629,3309.4,3307.7,0.1426144]
[1768693136302,0.15468122,3309.7,3307.7,0.1426144]
[1768693136502,0.9809604,3309.6,3307.7,0.1426144]
[1768693136711,0.9809604,3309.5,3307.7,0.1426144]
[1768693137009,0.15468122,3309.7,3307.7,0.1426144]
[1768693137010,0.9809604,3309.4,3307.7,0.1426144]
[1768693137202,0.15468122,3309.7,3307.7,0.1426144]
[1768693137400,0.98094735,3309.6,3307.7,0.1426144]
[1768693137601,0.98094735,3309.5,3307.7,0.1426144]
[1768693137805,0.98094735,3309.4,3307.7,0.1426144]
[1768693138015,0.15468122,3309.7,3307.7,0.1426144]
[1768693138308,1.1055857,3309.6,3307.7,0.1426144]
[1768693138510,1.1055857,3309.5,3307.7,0.1426144]
[1768693138711,0.98094735,3309.4,3307.7,0.1426144]
[1768693138913,0.12463835,3309.5,3307.7,0.1426144]
[1768693139104,0.98093828,3309.4,3307.7,0.1426144]
[1768693139404,0.12463835,3309.5,3307.7,0.1426144]
[1768693139605,0.98092834,3309.4,3307.7,0.1426144]
[1768693139806,0.12463835,3309.5,3307.7,0.1426144]
[1768693140105,0.98092834,3309.4,3307.7,0.1426144]
[1768693140304,0.97511602,3309.4,3307.7,0.1426144]
[1768693140820,1.09996296,3309.4,3307.7,0.1426144]
[1768693141123,0.9809311,3309.3,3307.7,0.1426144]
[1768693141316,1.09996296,3309.4,3307.7,0.1426144]
[1768693141517,0.98090462,3309.3,3307.7,0.1426144]
[1768693141716,1.09996296,3309.4,3307.7,0.1426144]
[1768693141922,0.98092596,3309.3,3307.7,0.1426144]
[1768693142122,1.09996296,3309.4,3307.7,0.1426144]
[1768693142324,0.98092633,3309.3,3307.7,0.1426144]
[1768693142619,1.09996296,3309.4,3307.7,0.1426144]
[1768693142924,0.98209787,3309.3,3307.7,0.1426144]
[1768693143120,1.09996296,3309.4,3307.7,0.1426144]
[1768693143328,0.98209789,3309.3,3307.7,0.1426144]
[1768693143624,1.09996296,3309.4,3307.7,0.1426144]
[1768693143818,0.98205212,3309.3,3307.7,0.1426144]
[1768693144018,1.09996296,3309.4,3307.7,0.1426144]
[1768693144220,0.98205212,3309.3,3307.7,0.1426144]
[1768693144518,1.09996296,3309.4,3307.7,0.1426144]
[1768693144827,0.98202945,3309.3,3307.7,0.1426144]
[1768693145018,1.09996296,3309.4,3307.7,0.1426144]
[1768693145219,0.98202943,3309.3,3307.7,0.1426144]
[1768693145420,1.09996296,3309.4,3307.7,0.1426144]
[1768693145717,0.9820155,3309.3,3307.7,0.1426144]
[1768693145917,1.09996296,3309.4,3307.7,0.1426144]
[1768693146216,0.98201567,3309.3,3307.7,0.1426144]
[1768693146416,1.09996296,3309.4,3307.7,0.1426144]
[1768693146617,0.98201162,3309.3,3307.7,0.1426144]
[1768693146817,1.09996296,3309.4,3307.7,0.1426144]
[1768693147018,0.98201162,3309.3,3307.7,0.1426144]
[1768693147326,1.09996296,3309.4,3307.7,0.1426144]
[1768693147527,0.98201814,3309.3,3307.7,0.1426144]
[1768693147732,1.09996296,3309.4,3307.7,0.1426144]
[1768693147924,0.98201812,3309.3,3307.7,0.1426144]
[1768693148226,1.09996296,3309.4,3307.7,0.1426144]
[1768693148425,0.98203541,3309.3,3307.7,0.1426144]
[1768693148628,1.09996296,3309.4,3307.7,0.1426144]
[1768693148825,0.98203541,3309.3,3307.7,0.1426144]
[1768693149023,1.09996296,3309.4,3307.7,0.1426144]
[1768693149226,0.98203541,3309.3,3307.7,0.1426144]
[1768693149524,1.09996296,3309.4,3307.7,0.1426144]
[1768693149733,0.98206398,3309.3,3307.7,0.1426144]
[1768693149930,1.09996296,3309.4,3307.7,0.1426144]
[1768693150129,0.98206398,3309.3,3307.7,0.1426144]
[1768693150326,1.09996296,3309.4,3307.7,0.1426144]
[1768693150527,0.98210366,3309.3,3307.7,0.1426144]
[1768693150729,1.09996296,3309.4,3307.7,0.1426144]
[1768693151026,0.98210366,3309.3,3307.7,0.1426144]
[1768693151227,1.09996296,3309.4,3307.7,0.1426144]
[1768693151428,0.98214134,3309.3,3307.7,0.1426144]
[1768693151727,1.09996296,3309.4,3307.7,0.1426144]
[1768693152026,0.98214134,3309.3,3307.7,0.1426144]
[1768693152227,0.98219425,3309.2,3307.7,0.1426144]
[1768693152426,1.09996296,3309.4,3307.7,0.1426144]
[1768693152629,0.12463574,3309.2,3307.3,0.1390512]
[1768693152932,1.12624602,3309.5,3307.3,0.1390512]
[1768693153130,0.98219348,3309.4,3307.3,0.1390512]
[1768693153333,0.98219348,3309.3,3307.3,0.1390512]
[1768693153537,0.98219348,3309.2,3307.3,0.1390512]
[1768693153737,1.12624602,3309.5,3307.3,0.1390512]
[1768693153928,0.98225758,3309.4,3307.3,0.1390512]
[1768693154227,0.98225758,3309.3,3307.3,0.1390512]
[1768693154529,0.98225758,3309.2,3307.3,0.1390512]
[1768693154729,1.12624602,3309.5,3307.3,0.1390512]
[1768693154929,0.9823342,3309.4,3307.3,0.1390512]
[1768693155123,0.9823342,3309.3,3307.3,0.1390512]
[1768693155434,0.9823342,3309.2,3307.3,0.1390512]
[1768693155732,1.12624602,3309.5,3307.3,0.1390512]
[1768693155932,0.98243728,3309.4,3307.3,0.1390512]
[1768693156132,0.98243728,3309.3,3307.3,0.1390512]
[1768693156432,0.98243728,3309.2,3307.3,0.1390512]
[1768693156631,1.12624602,3309.5,3307.3,0.1390512]
[1768693156832,0.98250198,3309.4,3307.3,0.1390512]
[1768693157033,0.98250198,3309.3,3307.3,0.1390512]
[1768693157230,0.98250198,3309.2,3307.3,0.1390512]
[1768693157431,1.25042325,3309.5,3307.3,0.1390512]
[1768693157637,0.98255,3309.4,3307.3,0.1390512]
[1768693157933,0.98255,3309.3,3307.3,0.1390512]
[1768693158134,0.98255,3309.2,3307.3,0.1390512]
[1768693158336,1.25042325,3309.5,3307.3,0.1390512]
[1768693158536,0.98257828,3309.4,3307.3,0.1390512]
[1768693158737,0.98257828,3309.3,3307.3,0.1390512]
[1768693159035,0.98257828,3309.2,3307.3,0.1390512]
[1768693159245,1.25042325,3309.5,3307.3,0.1390512]
[1768693159428,0.98257254,3309.4,3307.3,0.1390512]
[1768693159725,0.98257254,3309.3,3307.3,0.1390512]
[1768693159926,0.98257254,3309.2,3307.3,0.1390512]
[1768693160126,1.25042325,3309.5,3307.3,0.1390512]
[1768693160323,0.98254814,3309.4,3307.3,0.1390512]
[1768693160530,0.98254814,3309.3,3307.3,0.1390512]
[1768693160729,0.98254814,3309.2,3307.3,0.1390512]
[1768693160930,1.25042325,3309.5,3307.3,0.1390512]
[1768693161137,0.98254434,3309.4,3307.3,0.1390512]
[1768693161433,0.98254434,3309.3,3307.3,0.1390512]
[1768693161636,0.98254434,3309.2,3307.3,0.1390512]
[1768693161829,1.25042325,3309.5,3307.3,0.1390512]
[1768693162031,0.98254137,3309.4,3307.3,0.1390512]
[1768693162232,0.98254137,3309.3,3307.3,0.1390512]
[1768693162430,0.98254137,3309.2,3307.3,0.1390512]
[1768693162632,1.25042325,3309.5,3307.3,0.1390512]
[1768693162929,0.98254089,3309.4,3307.3,0.1390512]
[1768693163124,0.98254089,3309.3,3307.3,0.1390512]
[1768693163343,0.98254089,3309.2,3307.3,0.1390512]
[1768693163641,1.25042325,3309.5,3307.3,0.1390512]
[1768693163941,0.98257059,3309.4,3307.3,0.1390512]
[1768693164143,0.98257059,3309.3,3307.3,0.1390512]
[1768693164339,0.98257059,3309.2,3307.3,0.1390512]
[1768693164539,1.25042325,3309.5,3307.3,0.1390512]
[1768693164739,0.98260645,3309.4,3307.3,0.1390512]
[1768693165038,0.98260645,3309.3,3307.3,0.1390512]
[1768693165337,0.98260645,3309.2,3307.3,0.1390512]
[1768693165538,1.25042325,3309.5,3307.3,0.1390512]
[1768693165738,0.98264853,3309.4,3307.3,0.1390512]
[1768693165937,0.98264853,3309.3,3307.3,0.1390512]
[1768693166143,0.98264853,3309.2,3307.3,0.1390512]
[1768693166346,1.25042325,3309.5,3307.3,0.1390512]
[1768693166644,0.98269972,3309.4,3307.3,0.1390512]
[1768693166843,1.25042325,3309.5,3307.3,0.1390512]
[1768693166844,0.98269972,3309.3,3307.3,0.1390512]
[1768693167143,0.98269972,3309.2,3307.3,0.1390512]
[1768693167442,1.25042325,3309.5,3307.3,0.1390512]
[1768693167644,1.10562513,3309.4,3307.3,0.1390512]
[1768693167841,0.98276561,3309.3,3307.3,0.1390512]
[1768693168042,0.98276561,3309.2,3307.3,0.1390512]
[1768693168343,0.12285952,3309.4,3307.3,0.1390512]
[1768693168534,0.98285524,3309.3,3307.3,0.1390512]
[1768693168731,0.98285524,3309.2,3307.3,0.1390512]
[1768693168938,0.12285952,3309.4,3307.3,0.1390512]
[1768693169137,0.98285524,3309.3,3307.3,0.1390512]
[1768693169436,0.98285524,3309.2,3307.3,0.1390512]
[1768693169636,0.12285952,3309.4,3307.3,0.1390512]
[1768693169937,0.98298391,3309.3,3307.3,0.1390512]
[1768693170134,0.98298391,3309.2,3307.3,0.1390512]
[1768693170331,0.12285952,3309.4,3307.3,0.1390512]
[1768693170534,0.98298733,3309.3,3307.3,0.1390512]
[1768693170734,0.12285952,3309.4,3307.3,0.1390512]
[1768693170735,0.98298733,3309.2,3307.3,0.1390512]
[1768693171042,0.12285952,3309.4,3307.3,0.1390512]
[1768693171245,0.98298733,3309.3,3307.3,0.1390512]
[1768693171443,0.98298733,3309.2,3307.3,0.1390512]
[1768693171644,0.12285952,3309.4,3307.3,0.1390512]
[1768693171947,0.98308235,3309.3,3307.3,0.1390512]
[1768693172145,0.98308235,3309.2,3307.3,0.1390512]
[1768693172446,0.12285952,3309.4,3307.3,0.1390512]
[1768693172744,0.9829027,3309.3,3307.3,0.1390512]
[1768693172942,0.9829027,3309.2,3307.3,0.1390512]
[1768693173145,0.12285952,3309.4,3307.3,0.1390512]
[1768693173342,0.98290252,3309.3,3307.3,0.1390512]
[1768693173544,0.98290252,3309.2,3307.3,0.1390512]
[1768693173845,0.12285952,3309.4,3307.3,0.1390512]
[1768693174146,0.98290308,3309.3,3307.3,0.1390512]
[1768693174444,0.98290308,3309.2,3307.3,0.1390512]
[1768693174648,0.12285952,3309.4,3307.3,0.1390512]
[1768693174944,0.98290368,3309.3,3307.3,0.1390512]
[1768693175144,0.98290368,3309.2,3307.3,0.1390512]
[1768693175343,0.12285952,3309.4,3307.3,0.1390512]
[1768693175545,0.98290489,3309.3,3307.3,0.1390512]
[1768693175741,0.98290489,3309.2,3307.3,0.1390512]
[1768693175942,0.12285952,3309.4,3307.3,0.1390512]
[1768693176144,0.98290489,3309.3,3307.3,0.1390512]
[1768693176342,0.98290489,3309.2,3307.3,0.1390512]
[1768693176544,0.12285952,3309.4,3307.3,0.1390512]
[1768693176841,0.98290553,3309.3,3307.3,0.1390512]
[1768693177034,0.98290553,3309.2,3307.3,0.1390512]
[1768693177237,0.12285952,3309.4,3307.3,0.1390512]
[1768693177437,0.98290642,3309.3,3307.3,0.1390512]
[1768693177646,0.98290642,3309.2,3307.3,0.1390512]
[1768693178548,1.10539423,3309.2,3307.3,0.1390512]
[1768693178751,0.12248781,3309.2,3307.3,0.1390512]
[1768693179351,0.12248781,3309.2,3307.5,0.97548909]
[1768693179352,0.97548909,3308.9,3307.5,0.97548909]
[1768693181656,0.97548909,3308.9,3307.6,0.13881211]
[1768693182649,0.97548909,3308.3,3307.2,0.29004211]
[1768693183253,0.97548909,3308.5,3307.2,0.29004211]
[1768693183750,0.97548909,3308.5,3307.2,1.2655312]
[1768693192069,0.97548909,3308.0,3306.9,0.00251673]
[1768693193874,0.12268699,3308.6,3306.9,0.00251673]
[1768693194170,0.97548909,3308.1,3306.9,0.00251673]
[1768693201769,0.12268699,3308.6,3307.0,1.11652315]
[1768693201977,0.97548909,3308.7,3307.2,1.11652315]
[1768693202178,0.27387411,3309.0,3307.2,1.11652315]
[1768693202364,0.97548909,3308.7,3307.3,0.14103406]
[1768693213176,0.98240435,3308.6,3307.3,0.14103406]
[1768693213378,0.97548909,3308.7,3307.4,0.97548909]
[1768693213576,0.98243175,3308.6,3307.4,0.97548909]
[1768693213876,0.97548909,3308.7,3307.4,0.97548909]
[1768693214077,0.97548909,3308.9,3307.4,0.97548909]
[1768693214371,0.98243225,3308.8,3307.6,0.97548909]
[1768693214576,0.12272411,3309.0,3307.6,0.97548909]
[1768693214877,0.98245524,3308.9,3307.6,0.97548909]
[1768693215077,0.98245524,3308.8,3307.6,0.97548909]
[1768693215264,0.97548909,3308.9,3307.6,0.97548909]
[1768693215468,0.98250177,3308.8,3307.6,0.97548909]
[1768693215669,0.97548909,3308.9,3307.6,0.97548909]
[1768693215969,0.98250177,3308.8,3307.6,0.97548909]
[1768693216164,0.97548909,3308.9,3307.6,0.97548909]
[1768693216369,0.98250737,3308.8,3307.6,0.97548909]
[1768693216569,0.97548909,3308.9,3307.6,0.97548909]
[1768693216770,0.98255032,3308.8,3307.6,0.97548909]
[1768693216972,0.97548909,3308.9,3307.6,0.97548909]
[1768693217171,0.98255032,3308.8,3307.6,0.97548909]
[1768693217371,0.97548909,3308.9,3307.6,0.97548909]
[1768693217573,0.98260254,3308.8,3307.6,0.97548909]
[1768693217772,0.97548909,3308.9,3307.6,0.97548909]
[1768693218072,0.98260254,3308.8,3307.6,0.97548909]
[1768693218272,0.97548909,3308.9,3307.6,0.97548909]
[1768693218573,0.98265854,3308.8,3307.6,0.97548909]
[1768693218871,0.97548909,3308.9,3307.6,0.97548909]
[1768693219072,0.98265424,3308.8,3307.6,0.97548909]
[1768693219278,0.97548909,3308.9,3307.6,0.97548909]
[1768693219466,0.98271451,3308.8,3307.6,0.97548909]
[1768693219672,0.97548909,3309.2,3307.8,0.97548909]
[1768693219867,0.98269951,3309.1,3307.8,0.97548909]
[1768693220082,0.98269951,3309.0,3307.8,0.97548909]
[1768693220273,0.98269951,3308.9,3307.8,0.97548909]
[1768693220474,0.97548909,3309.2,3307.8,0.97548909]
[1768693220675,0.97548909,3309.0,3307.8,0.97548909]
[1768693220875,0.98266005,3308.9,3307.8,0.97548909]
[1768693221076,0.97548909,3309.0,3307.8,0.97548909]
[1768693221275,0.98256839,3308.9,3307.8,0.97548909]
[1768693221473,0.97548909,3309.0,3307.8,0.97548909]
[1768693221776,0.98262475,3308.9,3307.8,0.97548909]
[1768693221972,0.97548909,3309.0,3307.8,0.97548909]
[1768693222275,0.98262475,3308.9,3307.6,0.97548909]
[1768693222479,0.97548909,3309.0,3307.6,0.97548909]
[1768693222681,0.98252197,3308.9,3307.6,0.97548909]
[1768693222981,0.97548909,3309.0,3307.6,0.97548909]
[1768693223177,0.98252194,3308.9,3307.6,0.97548909]
[1768693223373,0.97548909,3309.0,3307.6,0.97548909]
[1768693223578,0.98245041,3308.9,3307.6,0.97548909]
[1768693223782,0.97548909,3309.0,3307.6,0.97548909]
[1768693223983,0.98245039,3308.9,3307.6,0.97548909]
[1768693224184,0.97548909,3309.0,3307.6,0.97548909]
[1768693224383,0.98239552,3308.9,3307.6,1.10689025]
[1768693224577,0.97548909,3309.0,3307.6,1.10689025]
[1768693224874,0.98239411,3308.9,3307.6,1.10689025]
[1768693225074,0.97548909,3309.0,3307.6,1.10689025]
[1768693225282,0.9823496,3308.9,3307.6,1.10689025]
[1768693225477,0.97548909,3309.0,3307.6,1.10689025]
[1768693225674,0.98235061,3308.9,3307.6,1.10689025]
[1768693225874,0.97548909,3309.0,3307.6,1.10689025]
[1768693226077,0.97548909,3309.0,3307.7,0.13140116]
[1768693226782,0.97548909,3309.0,3307.7,1.10689025]
[1768693229284,6.44927175,3309.4,3307.8,0.13140116]
[1768693229481,0.97548909,3309.2,3307.8,0.13140116]
[1768693235683,0.60218183,3309.8,3307.9,1.11811319]
[1768693235888,0.97548909,3309.4,3308.0,0.1426241]
[1768693236081,0.98207923,3309.3,3308.0,0.1426241]
[1768693236288,0.97548909,3309.4,3308.0,1.11811319]
[1768693236482,0.98203021,3309.3,3308.0,1.11811319]
[1768693236675,0.97548909,3309.4,3308.0,1.11811319]
[1768693236879,0.98202914,3309.3,3308.0,1.11811319]
[1768693237179,0.97548909,3309.4,3308.0,1.11811319]
[1768693237379,0.98200683,3309.3,3308.0,1.11811319]
[1768693237579,0.97548909,3309.4,3308.0,1.11811319]
[1768693237783,0.98200677,3309.3,3308.0,1.11811319]
[1768693237982,0.97548909,3309.4,3308.0,1.11811319]
[1768693238187,0.98200671,3309.3,3308.0,1.11811319]
[1768693238389,0.97548909,3309.4,3308.0,1.11811319]
[1768693238592,0.98200195,3309.3,3308.0,1.11811319]
[1768693238789,0.97548909,3309.4,3308.0,1.11811319]
[1768693238989,0.98200195,3309.3,3308.0,1.11811319]
[1768693239195,0.97548909,3309.3,3308.0,1.11811319]
[1768693239391,0.97548909,3309.3,3308.0,0.1426241]
[1768693241181,0.97548909,3309.4,3308.0,1.11811319]
[1768693241381,1.684,3309.5,3308.1,0.1426241]
[1768693251196,0.47654071,3309.8,3308.1,0.1426241]
[1768693251397,0.98203257,3309.6,3308.1,0.1426241]
[1768693251597,0.47654071,3309.8,3308.1,0.1426241]
[1768693251898,0.98202896,3309.6,3308.1,0.1426241]
[1768693252096,0.47654071,3309.8,3308.1,0.1426241]
[1768693252297,0.98202389,3309.6,3308.1,0.1426241]
[1768693252500,0.47654071,3309.8,3308.1,0.1426241]
[1768693252694,0.98202339,3309.6,3308.1,0.1426241]
[1768693252890,0.47654071,3309.8,3308.1,0.1426241]
[1768693253090,0.98202338,3309.6,3308.1,0.1426241]
[1768693253302,0.47654071,3309.8,3308.1,0.1426241]
[1768693253494,0.98203776,3309.6,3308.1,0.1426241]
[1768693253799,0.47654071,3309.8,3308.1,0.1426241]
[1768693260502,1.684,3309.9,3308.1,0.1426241]
[1768693261793,1.684,3309.9,3308.4,0.13284057]
[1768693263806,2.51554281,3310.1,3308.4,0.13284057]
[1768693270301,3.024,3310.3,3308.4,0.13284057]
[1768693271214,1.12622839,3310.7,3308.5,0.13284057]
[1768693271409,0.98146061,3310.6,3308.8,0.13284057]
[1768693271609,0.98146061,3310.5,3308.8,0.13284057]
[1768693271805,1.12622839,3310.7,3308.8,0.13284057]
[1768693272001,0.98143374,3310.6,3308.8,0.13284057]
[1768693272213,0.00230648,3310.6,3308.8,0.13284057]
[1768693278924,0.97515839,3310.4,3308.8,0.13284057]
[1768693279924,0.00230648,3310.6,3308.8,0.13284057]
[1768693280233,0.00230648,3310.6,3309.0,0.13284057]
[1768693301450,0.9745568,3310.5,3309.1,0.13775358]
[1768693302651,0.00230648,3310.6,3309.1,0.13775358]
[1768693302854,0.97686328,3310.6,3309.1,0.13775358]
[1768693305642,0.00230648,3310.6,3309.3,0.13775358]
[1768693305842,0.00230648,3310.6,3309.3,0.14116897]
[1768693308050,0.00230648,3310.6,3309.4,0.9745568]
[1768693308251,0.00230648,3310.6,3309.5,0.13775358]
[1768693314660,0.97686328,3310.6,3309.5,0.13775358]
[1768693320259,0.00230648,3310.6,3309.5,0.13775358]
[1768693320456,0.97686328,3310.6,3309.5,0.13775358]
[1768693325171,0.00230648,3310.6,3309.5,0.13775358]
[1768693326678,2.68887258,3311.5,3309.3,0.97797219]
[1768693326679,0.13442606,3311.7,3309.7,0.13568265]
[1768693326864,1.95728313,3311.6,3310.1,0.9745568]
[1768693327065,0.9745568,3311.6,3310.1,0.9745568]
[1768693327265,0.9745568,3311.4,3310.1,0.9745568]
[1768693327671,0.97751992,3311.4,3310.1,0.9745568]
[1768693330678,0.00296312,3311.4,3310.1,0.9745568]
[1768693330876,0.00296312,3311.4,3310.1,1.11023945]
[1768693345695,0.00296312,3311.4,3310.2,0.13633063]
[1768693354712,0.00296312,3311.4,3310.3,1.11667543]
[1768693363319,0.00296312,3311.4,3310.3,0.14211863]
[1768693382224,0.151,3312.4,3310.7,0.14097077]
[1768693382429,1.24929915,3312.3,3310.7,0.14097077]
[1768693382626,0.98196121,3312.2,3310.7,0.14097077]
[1768693382823,0.98196121,3312.1,3310.7,0.14097077]
[1768693383024,0.98196121,3312.0,3310.7,0.14097077]
[1768693383221,0.00273764,3312.0,3310.7,0.14097077]
[1768693395634,0.14556107,3312.0,3310.1,0.14097077]
[1768693395934,0.97917823,3311.9,3310.1,0.14097077]
[1768693396133,0.14556107,3312.0,3310.1,0.14097077]
[1768693396326,0.97920521,3311.9,3310.1,0.14097077]
[1768693396526,0.14556107,3312.0,3310.1,0.14097077]
[1768693396731,0.97920431,3311.9,3310.1,0.14097077]
[1768693396930,0.14556107,3312.0,3310.1,0.14097077]
[1768693397130,0.97923171,3311.9,3310.1,0.14097077]
[1768693397330,0.14556107,3312.0,3310.1,0.14097077]
[1768693397532,0.9792341,3311.9,3310.1,0.14097077]
[1768693397732,0.14556107,3312.0,3310.1,0.14097077]
[1768693397933,0.9792341,3311.9,3310.1,0.14097077]
[1768693398124,0.14556107,3312.0,3310.1,0.14097077]
[1768693398330,0.97926164,3311.9,3310.1,0.14097077]
[1768693398532,0.14556107,3312.0,3310.1,0.14097077]
[1768693398732,0.97926786,3311.9,3310.1,0.14097077]
[1768693399035,0.14556107,3312.0,3310.1,0.14097077]
[1768693399237,1.11671677,3311.8,3310.1,0.14097077]
[1768693399543,0.97929528,3311.7,3310.1,0.14097077]
[1768693402742,1.11671677,3311.8,3310.1,0.14097077]
[1768693405344,0.9794624,3311.7,3310.1,0.14097077]
[1768693405546,1.11671677,3311.8,3310.1,0.14097077]
[1768693405746,0.97946382,3311.7,3310.1,0.14097077]
[1768693406045,1.11671677,3311.8,3310.1,0.14097077]
[1768693406240,0.97946995,3311.7,3310.1,0.14097077]
[1768693406442,1.11671677,3311.8,3310.1,0.14097077]
[1768693406643,0.97949707,3311.7,3310.1,0.14097077]
[1768693406844,1.11671677,3311.8,3310.1,0.14097077]
[1768693407045,0.97949715,3311.7,3310.1,0.14097077]
[1768693407346,1.11671677,3311.8,3310.1,0.14097077]
[1768693407538,0.97953177,3311.7,3310.1,0.14097077]
[1768693407736,1.11671677,3311.8,3310.1,0.14097077]
[1768693407937,0.97953177,3311.7,3310.1,0.14097077]
[1768693408139,1.11671677,3311.8,3310.1,0.14097077]
[1768693408436,0.97953409,3311.7,3310.1,0.14097077]
[1768693408636,1.11671677,3311.8,3310.1,0.14097077]
[1768693408932,0.97956613,3311.7,3310.1,0.14097077]
[1768693409133,1.11671677,3311.8,3310.1,0.14097077]
[1768693409338,0.97956643,3311.7,3310.1,0.14097077]
[1768693409539,1.11671677,3311.8,3310.1,0.14097077]
[1768693409737,0.9795973,3311.7,3310.1,0.14097077]
[1768693409939,1.11671677,3311.8,3310.1,0.14097077]
[1768693410139,0.9795973,3311.7,3310.1,0.14097077]
[1768693410340,1.11671677,3311.8,3310.1,0.14097077]
[1768693410540,0.97959565,3311.7,3310.1,0.14097077]
[1768693410749,1.11671677,3311.8,3310.1,0.14097077]
[1768693410945,0.97959565,3311.7,3310.1,0.14097077]
[1768693411147,1.11671677,3311.8,3310.1,0.14097077]
[1768693411348,0.97959489,3311.7,3310.1,0.14097077]
[1768693411549,1.11671677,3311.8,3310.1,0.14097077]
[1768693411749,0.9795947,3311.7,3310.1,0.14097077]
[1768693411944,1.11671677,3311.8,3310.1,0.14097077]
[1768693412143,0.97959415,3311.7,3310.1,0.14097077]
[1768693412443,1.11671677,3311.8,3310.1,0.14097077]
[1768693412642,0.98032386,3311.7,3310.1,0.14097077]
[1768693412848,1.11671677,3311.8,3310.1,0.14097077]
[1768693413151,0.98032386,3311.7,3310.1,0.14097077]
[1768693413356,1.11671677,3311.8,3310.1,0.14097077]
[1768693419458,0.14282343,3311.8,3310.1,0.14097077]
[1768693424162,0.98098727,3311.7,3310.1,0.14097077]
[1768693424362,0.14282343,3311.8,3310.1,0.14097077]
[1768693424563,0.98098727,3311.7,3310.1,0.14097077]
[1768693424765,0.14282343,3311.8,3310.1,0.14097077]
[1768693424955,0.98098727,3311.7,3310.1,0.14097077]
[1768693425155,0.14282343,3311.8,3310.1,0.14097077]
[1768693425355,1.95504364,3311.7,3310.3,0.97389217]
[1768693425555,0.97389217,3311.7,3310.3,0.97389217]
[1768693427066,0.97389217,3311.7,3310.3,1.11023128]
[1768693429265,0.98155071,3311.6,3310.3,1.11023128]
[1768693429564,0.97389217,3311.7,3310.3,1.11023128]
[1768693429764,0.98155071,3311.6,3310.3,1.11023128]
[1768693429954,0.97389217,3311.7,3310.3,1.11023128]
[1768693430151,0.98155071,3311.6,3310.3,1.11023128]
[1768693430356,0.97389217,3311.7,3310.3,1.11023128]
[1768693430559,0.98156779,3311.6,3310.3,1.11023128]
[1768693430763,0.97389217,3311.7,3310.3,1.11023128]
[1768693448790,0.97389217,3311.7,3310.3,0.13633911]
[1768693448981,0.97389217,3311.7,3310.3,1.11023128]
[1768693449490,0.14282343,3311.8,3310.3,1.11023128]
[1768693449787,0.97389217,3311.6,3310.3,1.11023128]
[1768693467601,0.14282343,3311.8,3310.3,1.11023128]
[1768693467897,0.97389217,3311.6,3310.3,1.11023128]
[1768693472802,1.12491217,3311.9,3310.4,0.14266965]
[1768693473103,0.98285004,3311.8,3310.6,0.97389217]
[1768693473303,0.98285004,3311.7,3310.6,0.97389217]
[1768693473511,1.12491217,3311.9,3310.6,0.97389217]
[1768693473805,0.98278745,3311.8,3310.6,0.97389217]
[1768693474106,0.98278745,3311.7,3310.6,0.97389217]
[1768693474297,1.12491217,3311.9,3310.6,0.97389217]
[1768693474500,0.98276501,3311.8,3310.6,0.97389217]
[1768693474705,0.98276501,3311.7,3310.6,0.97389217]
[1768693475005,1.12491217,3311.9,3310.6,0.97389217]
[1768693475303,0.98276505,3311.8,3310.6,0.97389217]
[1768693475497,0.98276505,3311.7,3310.6,0.97389217]
[1768693475698,1.12491217,3311.9,3310.6,0.97389217]
[1768693475900,0.98274841,3311.8,3310.6,0.97389217]
[1768693476102,0.98274841,3311.7,3310.4,1.11656182]
[1768693476406,0.97389217,3311.7,3310.4,1.11656182]
[1768693479211,0.97662981,3312.0,3310.6,0.97389217]
[1768693479415,0.98274683,3311.9,3310.6,0.97389217]
[1768693479607,0.98274683,3311.8,3310.6,0.97389217]
[1768693479905,0.98274683,3311.7,3310.6,0.97389217]
[1768693480203,0.97389217,3311.8,3310.4,1.11656182]
[1768693480404,0.98273471,3311.7,3310.4,1.11656182]
[1768693480703,0.97389217,3311.8,3310.4,1.11656182]
[1768693480897,0.98273463,3311.7,3310.4,1.11656182]
[1768693481108,0.14338525,3311.9,3310.4,0.14266965]
[1768693481307,0.97389217,3311.7,3310.4,0.14266965]
[1768693487320,0.14338525,3311.9,3310.4,0.14266965]
[1768693487521,0.98269702,3311.8,3310.4,0.14266965]
[1768693487819,0.14338525,3311.9,3310.4,0.14266965]
[1768693488020,0.98269997,3311.8,3310.4,0.14266965]
[1768693488318,0.14338525,3311.9,3310.4,0.14266965]
[1768693488623,0.98269817,3311.8,3310.4,0.14266965]
[1768693488815,0.14338525,3311.9,3310.4,0.14266965]
[1768693489014,0.98269128,3311.8,3310.4,0.14266965]
[1768693489213,0.14338525,3311.9,3310.4,0.14266965]
[1768693489514,0.98268554,3311.8,3310.4,0.14266965]
[1768693489721,0.14338525,3311.9,3310.4,0.14266965]
[1768693490021,0.98268554,3311.8,3310.4,0.14266965]
[1768693490221,0.14338525,3311.9,3310.4,0.14266965]
[1768693490429,0.14338525,3311.7,3310.0,0.93345752]
[1768693491228,1.11719646,3311.4,3310.0,0.13549957]
[1768693496032,0.14194259,3311.3,3309.8,0.15111]
[1768693497129,0.14194259,3311.3,3309.8,0.28436621]
[1768693500535,0.14194259,3311.3,3309.6,2.04564529]
[1768693500737,0.14194259,3310.9,3309.4,0.13325621]
[1768693501740,0.14194259,3310.9,3309.3,0.00341539]
[1768693504235,0.14194259,3310.5,3309.3,0.00341539]
[1768693505542,0.14194259,3310.0,3308.6,0.13325621]
[1768693506442,0.14194259,3310.0,3308.6,0.13589372]
[1768693507533,0.14194259,3310.0,3308.6,0.00263751]
[1768693512250,1.12489121,3310.5,3308.7,0.13325621]
[1768693512251,0.14194259,3310.4,3308.7,0.13325621]
[1768693512744,0.14194259,3310.8,3308.7,0.13325621]
[1768693518653,0.14194259,3310.8,3309.1,0.13325621]
[1768693521347,0.15105,3311.2,3309.1,0.13325621]
[1768693521348,0.29299259,3311.2,3309.1,0.13325621]
[1768693521559,0.29299259,3311.2,3309.5,0.13325621]
[1768693529962,0.14194259,3311.2,3309.5,0.13325621]
[1768693541360,0.14194259,3311.2,3309.2,0.15114]
[1768693541669,0.13432356,3311.1,3309.2,0.15114]
[1768693547270,0.974522,3310.5,3309.2,0.15114]
[1768693547665,0.974522,3310.3,3309.1,0.13684028]
[1768693554479,0.974522,3310.5,3309.1,1.11136228]
[1768693555276,0.974522,3310.7,3309.3,0.974522]
[1768693555484,0.13432356,3310.8,3309.3,1.11617825]
[1768693556379,0.13432356,3310.8,3309.5,0.974522]
[1768693557384,0.974522,3310.7,3309.3,1.11617825]
[1768693558684,1.10942535,3310.7,3309.3,1.11617825]
[1768693558875,0.974522,3310.5,3309.1,0.974522]
[1768693563891,0.974522,3310.5,3308.9,1.26733825]
[1768693565591,1.10942535,3310.5,3308.9,1.26733825]
[1768693566694,1.10942535,3310.5,3309.1,0.974522]
[1768693567394,1.10942535,3310.5,3308.9,0.29281625]
[1768693567395,0.13490335,3310.5,3309.4,0.974522]
[1768693567600,1.10942535,3311.0,3309.6,0.974522]
[1768693567899,1.64740396,3311.4,3310.0,0.974522]
[1768693568101,0.98331107,3311.3,3309.8,0.974522]
[1768693568394,1.95783307,3311.2,3309.8,0.974522]
[1768693568603,0.98331107,3311.1,3309.8,0.974522]